{"text_format":"3","workbook":"xlsx","n_sheets":4,"sheets":["Offerteformulier","Grafiekgegevens","Kostenoverzicht","Kostenoverzicht offerte"],"not_rendered":{"charts":1,"images":2,"defined_names":11},"read":"whole","date_system":"1900"}

{"sheet":"Offerteformulier","index":0,"n_rows":21,"n_cols":6,"rows_kept":21,"merged":[[0,1,0,4],[1,1,1,2],[7,1,8,1],[7,2,8,2],[10,1,10,5],[12,1,12,5],[14,1,14,5],[15,1,15,2],[15,4,15,5],[16,1,16,2],[16,4,16,5],[18,1,18,5],[19,1,19,2],[19,4,19,5],[20,1,20,2],[20,4,20,5]]}
[null,"Formulier bouwvoorstel"]
[null,"Gegevens van eigenaar",null,null,"Gegevens van aannemer"]
[null,"Naam","Voer in deze cel de naam van de eigenaar in",null,"Bedrijf","Voer in deze cel de bedrijfsnaam van de aannemer in"]
[null,"Adres","Voer in deze cel het adres van de eigenaar in",null,"Naam","Voer in deze cel de naam van de aannemer in"]
[null,"Plaats, provincie, postcode","Voer in deze cel de plaat, provincie en postcode van de eigenaar in",null,"Adres","Voer in deze cel het adres van de aannemer in"]
[null,"Telefoonnummer","Voer in deze cel het telefoonnummer van de eigenaar in",null,"Plaats, provincie, postcode","Voer in deze cel de plaats, provincie en postcode van de aannemer in"]
[null,"E-mailadres","Voer in deze cel het e-mailadres van de eigenaar in",null,"Telefoonnummer","Voer in deze cel het telefoonnummer van de aannemer in"]
[null,"Projectnaam","Voer in deze cel de projectnaam in",null,"E-mailadres","Voer in deze cel het e-mailadres van de aannemer in "]
[{"$nulls":4},"Voltooiingsdatum","Voer in deze cel de opleverdatum in"]
[null,"Afgesproken werk"]
[null,"Voer hier het bestek van het project in. Voer hier alle gewenste specificaties in. \n\nVoorbeeldtekst: Dit wordt een modelproject van een grote trap. We gebruiken alleen balken van 2\" x 4\" en 2\" x 8\" en balkdragers om het geraamte/skelet te maken. De trap wordt uit de balken van 2\" x 4\" gezaagd. We gebruiken alleen schroeven van 5 cm of groter.  We gebruiken alleen spijkers van 7,6 cm of groter. De ontwerpbelasting is minimaal 225 kg per trede. De treden zijn waterpas met het huis. Aan het huis wordt een treeplank bevestigd. De aannemer neemt het opruimen voor zijn rekening."]
[null,"Niet inbegrepen"]
[null,"Beschrijf hier wat er buiten het project valt. Voer in wat er allemaal niet wordt gedaan bij dit voorstel. \n\nVoorbeeldtekst: Er worden geen trapleuningen geïnstalleerd. De grond moet door de eigenaar worden voorbereid. De trap wordt geverfd door de eigenaar."]
[null,"Voorstel van het bedrijf"]
[null,"Hier komt het voorstel van het bedrijf. Voer een overzicht van het voorstel in, zoals wie het voorstel heeft opgesteld, de verwachte opleverdatum en het bedrag.\n\nVoorbeeldtekst: Dit is een voorstel van Bedrijfsnaam voor het bovenstaande werk. De verwachte opleverdatum is Opleverdatum en het offertebedrag is Totaalbedrag."]
[]
[null,"Verzonden door (Vertegenwoordiger van bedrijf)",null,null,"Datum"]
[null,"Akkoord door eigenaar"]
[null,"Voer hier in of de eigenaar akkoord gaat. Voer de naam van de eigenaar in in de akkoordverklaring, waarin de opleverdatum en het bedrag uit het voorstel zijn overgenomen. \n\nVoorbeeldtekst: Ik, Naam eigenaar, ga akkoord met het bovenstaande voorstel, met een opleverdatum van Opleverdatum voor een bedrag van Totaalbedrag."]
[]
[null,"Verzonden door (Eigenaar van huis of gemachtigde vertegenwoordiger)",null,null,"Datum"]

{"sheet":"Grafiekgegevens","index":1,"n_rows":7,"n_cols":3,"rows_kept":7,"hidden":true}
[]
[null,null,"Totaal"]
[null,{"$f":"INDEX(BidItems[#Data],MATCH(1,BidItems[Gerangschikte kosten],0),2)","v":"Arbeidskosten"},{"$f":"INDEX(BidItems[#Data],MATCH(1,BidItems[Gerangschikte kosten],0),4)","v":200}]
[null,{"$f":"INDEX(BidItems[#Data],MATCH(2,BidItems[Gerangschikte kosten],0),2)","v":"Balken van 2\" x 4\" x 10\""},{"$f":"INDEX(BidItems[#Data],MATCH(2,BidItems[Gerangschikte kosten],0),4)","v":99.39999999999999}]
[null,{"$f":"INDEX(BidItems[#Data],MATCH(3,BidItems[Gerangschikte kosten],0),2)","v":"Balkdragers"},{"$f":"INDEX(BidItems[#Data],MATCH(3,BidItems[Gerangschikte kosten],0),4)","v":74.7}]
[null,{"$f":"INDEX(BidItems[#Data],MATCH(4,BidItems[Gerangschikte kosten],0),2)","v":"Balken van 2\" x 8\" x 10\""},{"$f":"INDEX(BidItems[#Data],MATCH(4,BidItems[Gerangschikte kosten],0),4)","v":33.75}]
[null,{"$f":"INDEX(BidItems[#Data],MATCH(5,BidItems[Gerangschikte kosten],0),2)","v":"Leren handschoenen"},{"$f":"INDEX(BidItems[#Data],MATCH(5,BidItems[Gerangschikte kosten],0),4)","v":15.5}]

{"sheet":"Kostenoverzicht","index":2,"n_rows":14,"n_cols":6,"rows_kept":14,"merged":[[0,1,0,4],[1,1,1,4]]}
[null,"Kostenoverzicht",{"$nulls":3}," "]
[null,"Lijst van materialen en kosten"]
[null,"Aantal","Beschrijving","Kosten","Totaal","Gerangschikte kosten"]
[null,5,"Balken van 2\" x 8\" x 10\"",{"v":6.75,"d":"€ 6.75"},{"$f":"IFERROR(BidItems[[#This Row],[Kosten]]*BidItems[[#This Row],[Aantal]], \"\")","v":{"v":33.75,"d":"€ 33.75"}},{"$f":"_xlfn.RANK.EQ(BidItems[[#This Row],[Totaal]],BidItems[Totaal])","v":4}]
[null,20,"Balken van 2\" x 4\" x 10\"",{"v":4.97,"d":"€ 4.97"},{"$f":"IFERROR(BidItems[[#This Row],[Kosten]]*BidItems[[#This Row],[Aantal]], \"\")","v":{"v":99.39999999999999,"d":"€ 99.40"}},{"$f":"_xlfn.RANK.EQ(BidItems[[#This Row],[Totaal]],BidItems[Totaal])","v":2}]
[null,30,"Balkdragers",{"v":2.49,"d":"€ 2.49"},{"$f":"IFERROR(BidItems[[#This Row],[Kosten]]*BidItems[[#This Row],[Aantal]], \"\")","v":{"v":74.7,"d":"€ 74.70"}},{"$f":"_xlfn.RANK.EQ(BidItems[[#This Row],[Totaal]],BidItems[Totaal])","v":3}]
[null,2,"Doos schroeven van 5 cm",{"v":6.67,"d":"€ 6.67"},{"$f":"IFERROR(BidItems[[#This Row],[Kosten]]*BidItems[[#This Row],[Aantal]], \"\")","v":{"v":13.34,"d":"€ 13.34"}},{"$f":"_xlfn.RANK.EQ(BidItems[[#This Row],[Totaal]],BidItems[Totaal])","v":6}]
[null,2,"Doos spijkers van 7,6 cm",{"v":3.25,"d":"€ 3.25"},{"$f":"IFERROR(BidItems[[#This Row],[Kosten]]*BidItems[[#This Row],[Aantal]], \"\")","v":{"v":6.5,"d":"€ 6.50"}},{"$f":"_xlfn.RANK.EQ(BidItems[[#This Row],[Totaal]],BidItems[Totaal])","v":7}]
[null,2,"Leren handschoenen",{"v":7.75,"d":"€ 7.75"},{"$f":"IFERROR(BidItems[[#This Row],[Kosten]]*BidItems[[#This Row],[Aantal]], \"\")","v":{"v":15.5,"d":"€ 15.50"}},{"$f":"_xlfn.RANK.EQ(BidItems[[#This Row],[Totaal]],BidItems[Totaal])","v":5}]
[null,2,"Arbeidskosten",{"v":100,"d":"€ 100.00"},{"$f":"IFERROR(BidItems[[#This Row],[Kosten]]*BidItems[[#This Row],[Aantal]], \"\")","v":{"v":200,"d":"€ 200.00"}},{"$f":"_xlfn.RANK.EQ(BidItems[[#This Row],[Totaal]],BidItems[Totaal])","v":1}]
[4,null,null,"Subtotaal",{"$f":"SUBTOTAL(109,BidItems[Totaal])","v":{"v":443.18999999999994,"d":"€ 443.19"}}]
[5,null,null,"Belastingtarief",{"v":0.075,"d":"7.50%"}]
[{"$nulls":3},"Belasting",{"$f":"IFERROR(Belastingtarief*BidItems[[#Totals],[Totaal]], \"\")","v":{"v":33.23924999999999,"d":"€ 33.24"}}]
[{"$nulls":3},"Eindtotaal",{"$f":"IFERROR(Belasting+BidItems[[#Totals],[Totaal]], \"\")","v":{"v":476.4292499999999,"d":"€ 476.43"}}]

{"sheet":"Kostenoverzicht offerte","index":3,"n_rows":3,"n_cols":4,"rows_kept":3}
[null,"Kostenoverzicht offerte"]
[null,"Overzicht van materialen en kosten",null,"Notities"]
[null,"Cirkeldiagram van de vijf duurste materialen. De gegevens komen uit de tabel Offerte-items op het werkblad Kostenoverzicht",null,"Voer in deze cel notities in."]